[Event "GER-ch Youth-U14w 2022"]
[Site "Willingen"]
[Date "2022.06.05"]
[Round "2.2"]
[White "Wartenberg, Alissa"]
[Black "Englert, Lin"]
[Result "1-0"]
[ECO "B38"]
[WhiteElo "1741"]
[BlackElo "1503"]
[Annotator "NA RC COMBH"]
[PlyCount "73"]
[EventDate "2022.06.05"]
[EventType "swiss"]
[EventRounds "9"]
[EventCountry "GER"]
[SourceTitle "playchess.com"]
[Source "ChessBase"]
[SourceQuality "1"]
[TimeControl "40/4500+30:900+30"]

1. e4 {[%emt 0:00:00]} c5 {[%emt 0:00:00]} 2. Nf3 {[%emt 0:00:00]} Nc6 {[%emt 0:00:00]} 3. d4 {[%emt 0:00:00]} cxd4 {[%emt 0:00:00]} 4. Nxd4 {[%emt 0:00:00]} g6 {[%emt 0:00:00]} 5. c4 {[%emt 0:00:00]} Bg7 {[%emt 0:00:00]} 6. Be3 {[%emt 0:00:00]} Nf6 {[%emt 0:00:00]} 7. Nc3 {[%emt 0:00:00]} O-O {[%emt 0:00:00]} 8. f3 {[%emt 0:00:00]} d6 {[%emt 0:00:00]} 9. Qd2 {[%emt 0:00:00]} a6 {[%emt 0:00:00]} 10. O-O-O {[%emt 0:00:00]} Bd7 {[%emt 0:00:00]} 11. g4 {[%emt 0:00:00]} Rc8 {[%emt 0:00:00]} 12. h4 {[%emt 0:00:00]} h5 {[%emt 0:00:00]} 13. gxh5 {[%emt 0:00:00]} Nxh5 {[%emt 0:00:00]} 14. Be2 {[%emt 0:00:00]} Nxd4 {[%emt 0:00:00]} 15. Bxd4 {[%emt 0:00:00]} Be6 {[%emt 0:01:30]} 16. Bxg7 {[%emt 0:00:00]} Kxg7 {[%emt 0:00:18]} 17. f4 {[%emt 0:00:00]} Ng3 {[%emt 0:04:32]} 18. Rhg1 {[%emt 0:00:00]} Nxe2+ {[%emt 0:00:20]} 19. Qxe2 {[%emt 0:00:22]} Bxc4 {[%emt 0:00:55]} 20. Qg2 {[%emt 0:01:08]} Rh8 {[%emt 0:03:28]} 21. Kb1 {[%emt 0:03:37]} Rxh4 {[%emt 0:04:00]} 22. f5 {[%emt 0:05:09]} Rh6 {[%emt 0:06:09]} 23. fxg6 {[%emt 0:02:18]} Rxg6 {[%emt 0:01:54]} 24. Qh3 {[%emt 0:01:44]} Qh8 {[%emt 0:01:07]} 25. Qf5 {[%emt 0:05:02]} Be6 {[%emt 0:02:40]} 26. Rxg6+ {[%emt 0:00:18]} fxg6 {[%emt 0:01:04]} 27. Qxe6 {[%emt 0:00:06]} Qe8 {[%emt 0:04:43]} 28. Nd5 {[%emt 0:00:21]} Rc5 {[%emt 0:01:14]} 29. Rg1 {[%emt 0:00:34]} Qf7 {[%emt 0:02:09]} 30. Qxe7 {[%emt 0:00:47]} Qxe7 {[%emt 0:01:02]} 31. Nxe7 {[%emt 0:00:04]} g5 {[%emt 0:00:07]} 32. Nf5+ {[%emt 0:00:03]} Rxf5 {[%emt 0:01:58]} 33. exf5 {[%emt 0:00:06]} Kf6 {[%emt 0:00:03]} 34. Rf1 {[%emt 0:00:10]} g4 {[%emt 0:00:05]} 35. Kc2 {[%emt 0:00:05]} g3 {[%emt 0:00:06]} 36. Rg1 {[%emt 0:00:03]} Kxf5 {[%emt 0:00:07]} 37. Rxg3 {[%emt 0:00:03]} 1-0

[Event "GER-ch Youth-U14w 2022"]
[Site "Willingen"]
[Date "2022.06.05"]
[Round "2.3"]
[White "Braeutigam, Katerina"]
[Black "Margaryan, Venera"]
[Result "1-0"]
[ECO "C00"]
[WhiteElo "1860"]
[BlackElo "1477"]
[Annotator "NA RC COMBH"]
[PlyCount "73"]
[EventDate "2022.06.05"]
[EventType "swiss"]
[EventRounds "9"]
[EventCountry "GER"]
[SourceTitle "playchess.com"]
[Source "ChessBase"]
[SourceQuality "1"]
[TimeControl "40/4500+30:900+30"]

1. e4 {[%emt 0:00:00]} e6 {[%emt 0:00:00]} 2. d3 {[%emt 0:00:00]} d5 {[%emt 0:00:00]} 3. Qe2 {[%emt 0:00:00]} dxe4 {[%emt 0:00:00]} 4. dxe4 {[%emt 0:00:00]} b6 {[%emt 0:00:00]} 5. Nf3 {[%emt 0:00:00]} Bb7 {[%emt 0:00:00]} 6. c4 {[%emt 0:00:00]} g6 {[%emt 0:00:00]} 7. Nc3 {[%emt 0:05:12]} Bg7 $11 {[%emt 0:03:59]} 8. Bd2 {[%emt 0:00:51]} Nd7 {[%emt 0:02:53]} 9. O-O-O {[%emt 0:03:48]} Qe7 {[%emt 0:07:32]} 10. Bg5 {[%emt 0:26:18]} Qc5 {[%emt 0:14:27]} 11. Nb5 {[%emt 0:25:11]} a6 {[%emt 0:13:15]} 12. Qd2 {[%emt 0:10:32]} Qc6 {[%emt 0:25:05]} 13. Nfd4 {[%emt 0:07:17]} Bxd4 {[%emt 0:02:40]} 14. Nxd4 {[%emt 0:00:10]} Qd6 {[%emt 0:04:26]} 15. Qc3 {[%emt 0:01:45]} Qe5 {[%emt 0:04:10]} 16. f4 {[%emt 0:00:53]} Qg7 {[%emt 0:01:10]} 17. Qd2 {[%emt 0:01:12]} Bc8 {[%emt 0:02:08]} 18. e5 {[%emt 0:00:43]} Nh6 {[%emt 0:01:17]} 19. Be2 {[%emt 0:00:34]} O-O {[%emt 0:00:52]} 20. Bf3 {[%emt 0:00:16]} Rb8 {[%emt 0:00:59]} 21. Nc6 {[%emt 0:00:28]} Ra8 {[%emt 0:00:27]} 22. Ne7+ {[%emt 0:00:27]} Kh8 {[%emt 0:00:24]} 23. Bxa8 {[%emt 0:00:17]} f6 {[%emt 0:00:39]} 24. Nxc8 {[%emt 0:00:59]} fxg5 {[%emt 0:00:30]} 25. Qxd7 {[%emt 0:00:32]} Qxd7 {[%emt 0:00:24]} 26. Rxd7 {[%emt 0:00:02]} Rxc8 {[%emt 0:00:22]} 27. fxg5 {[%emt 0:00:48]} Ng4 {[%emt 0:00:36]} 28. Bb7 {[%emt 0:00:21]} Rb8 {[%emt 0:00:42]} 29. Rxc7 {[%emt 0:00:20]} Nxe5 {[%emt 0:00:21]} 30. Bxa6 {[%emt 0:00:47]} Rd8 {[%emt 0:00:35]} 31. Rd1 {[%emt 0:00:30]} Nd3+ {[%emt 0:00:25]} 32. Kb1 {[%emt 0:00:22]} e5 {[%emt 0:00:37]} 33. Rc8 {[%emt 0:00:45]} Rxc8 {[%emt 0:00:11]} 34. Bxc8 {[%emt 0:00:02]} e4 {[%emt 0:00:27]} 35. Bb7 {[%emt 0:00:26]} Nf2 {[%emt 0:00:31]} 36. Rd7 {[%emt 0:01:06]} e3 {[%emt 0:00:40]} 37. Bd5 1-0

[Event "GER-ch Youth-U14w 2022"]
[Site "Willingen"]
[Date "2022.06.05"]
[Round "2.4"]
[White "Flierl, Veronika"]
[Black "Lorenz, Veronika"]
[Result "0-1"]
[ECO "C50"]
[WhiteElo "1427"]
[BlackElo "1510"]
[Annotator "NA RC COMBH"]
[PlyCount "94"]
[EventDate "2022.06.05"]
[EventType "swiss"]
[EventRounds "9"]
[EventCountry "GER"]
[SourceTitle "playchess.com"]
[Source "ChessBase"]
[SourceQuality "1"]
[TimeControl "40/4500+30:900+30"]

1. e4 {[%emt 0:00:00]} e5 {[%emt 0:00:00]} 2. Nf3 {[%emt 0:00:00]} Nc6 {[%emt 0:00:00]} 3. Bc4 {[%emt 0:00:00]} Nf6 {[%emt 0:00:00]} 4. d3 {[%emt 0:00:00]} Bc5 {[%emt 0:00:00]} 5. c3 {[%emt 0:00:00]} d5 {[%emt 0:00:00]} 6. exd5 {[%emt 0:00:00]} Nxd5 {[%emt 0:00:00]} 7. O-O {[%emt 0:00:00]} O-O {[%emt 0:00:00]} 8. Re1 {[%emt 0:00:00]} Bg4 {[%emt 0:00:00]} 9. Nbd2 {[%emt 0:00:00]} Nb6 {[%emt 0:00:06]} 10. Bb3 {[%emt 0:00:00]} Qxd3 {[%emt 0:02:37]} 11. h3 {[%emt 0:00:00]} Bxf3 {[%emt 0:03:26]} 12. Qxf3 {[%emt 0:00:00]} Qxf3 {[%emt 0:02:19]} 13. Nxf3 {[%emt 0:00:00]} Bd6 {[%emt 0:02:31]} 14. Bg5 {[%emt 0:00:00]} Na5 {[%emt 0:06:12]} 15. Bc2 {[%emt 0:00:00]} f6 {[%emt 0:01:45]} 16. Be3 {[%emt 0:00:35]} Nbc4 {[%emt 0:06:07]} 17. Bc1 {[%emt 0:00:13]} Kh8 {[%emt 0:02:36]} 18. Re4 {[%emt 0:04:47]} f5 {[%emt 0:12:54]} 19. Re2 {[%emt 0:00:17]} Nc6 {[%emt 0:04:43]} 20. Ba4 {[%emt 0:04:58]} Rae8 {[%emt 0:08:31]} 21. Bb3 {[%emt 0:02:49]} Nb6 {[%emt 0:02:14]} 22. Ng5 {[%emt 0:02:53]} Re7 {[%emt 0:04:52]} 23. Be3 {[%emt 0:03:06]} h6 {[%emt 0:03:02]} 24. Nf3 {[%emt 0:02:09]} e4 {[%emt 0:08:15]} 25. Nd4 {[%emt 0:01:48]} Nxd4 {[%emt 0:00:06]} 26. Bxd4 {[%emt 0:00:11]} c5 {[%emt 0:00:24]} 27. Be3 {[%emt 0:00:15]} f4 {[%emt 0:05:30]} 28. Bd2 {[%emt 0:01:20]} Rfe8 {[%emt 0:04:42]} 29. Rae1 {[%emt 0:01:57]} c4 {[%emt 0:02:15]} 30. Bc2 {[%emt 0:02:21]} e3 {[%emt 0:00:06]} 31. fxe3 {[%emt 0:00:51]} fxe3 {[%emt 0:00:05]} 32. Rxe3 {[%emt 0:01:20]} Bc5 {[%emt 0:00:10]} 33. Kf2 {[%emt 0:07:29]} Nd5 {[%emt 0:01:51]} 34. Ba4 {[%emt 0:02:04]} Rf8+ {[%emt 0:01:02]} 35. Ke2 {[%emt 0:00:09]} Bxe3 {[%emt 0:00:28]} 36. Bxe3 {[%emt 0:00:16]} Rxe3+ {[%emt 0:00:10]} 37. Kd2 {[%emt 0:00:09]} Rf2+ {[%emt 0:00:22]} 38. Kd1 {[%emt 0:00:14]} Rxe1+ {[%emt 0:00:35]} 39. Kxe1 {[%emt 0:00:08]} Rxb2 {[%emt 0:00:13]} 40. Kf1 {[%emt 0:00:45]} Nxc3 {[%emt 0:00:16]} 41. Bd7 {[%emt 0:15:18]} Nxa2 {[%emt 0:15:17]} 42. Be6 {[%emt 0:00:19]} c3 {[%emt 0:00:10]} 43. Bxa2 {[%emt 0:00:16]} Rxa2 {[%emt 0:00:05]} 44. Ke1 {[%emt 0:00:10]} Ra1+ {[%emt 0:00:10]} 45. Kf2 {[%emt 0:00:18]} c2 {[%emt 0:00:06]} 46. Kg3 {[%emt 0:00:08]} c1=Q {[%emt 0:00:08]} 47. Kh4 {[%emt 0:00:11]} Qg5# {[%emt 0:00:09]} 0-1

[Event "GER-ch Youth-U14w 2022"]
[Site "Willingen"]
[Date "2022.06.05"]
[Round "2.5"]
[White "Stepanjan, Marianne"]
[Black "Bezsonna, Polina"]
[Result "1/2-1/2"]
[ECO "B72"]
[WhiteElo "1489"]
[BlackElo "1511"]
[Annotator "NA RC COMBH"]
[PlyCount "110"]
[EventDate "2022.06.05"]
[EventType "swiss"]
[EventRounds "9"]
[EventCountry "GER"]
[SourceTitle "playchess.com"]
[Source "ChessBase"]
[SourceQuality "1"]
[TimeControl "40/4500+30:900+30"]

1. e4 {[%emt 0:00:00]} c5 {[%emt 0:00:00]} 2. Nf3 {[%emt 0:00:00]} Nc6 {[%emt 0:00:00]} 3. d4 {[%emt 0:00:00]} cxd4 {[%emt 0:00:00]} 4. Nxd4 {[%emt 0:00:00]} g6 {[%emt 0:00:00]} 5. Nc3 {[%emt 0:00:00]} Bg7 {[%emt 0:00:00]} 6. Be3 {[%emt 0:00:00]} Nf6 {[%emt 0:00:00]} 7. Be2 {[%emt 0:00:00]} O-O {[%emt 0:00:00]} 8. Qd2 {[%emt 0:00:00]} d6 {[%emt 0:00:00]} 9. O-O-O {[%emt 0:02:25]} Bd7 {[%emt 0:00:00]} 10. h4 {[%emt 0:02:57]} h5 {[%emt 0:00:00]} 11. f3 {[%emt 0:04:06]} Ne5 {[%emt 0:00:00]} 12. Rdg1 {[%emt 0:11:23]} Qc8 {[%emt 0:00:00]} 13. Qd1 {[%emt 0:04:59]} Rb8 {[%emt 0:06:05]} 14. Bg5 {[%emt 0:22:47]} Kh7 {[%emt 0:02:57]} 15. Bxf6 {[%emt 0:18:05]} Bxf6 {[%emt 0:06:48]} 16. Nd5 {[%emt 0:01:41]} Rh8 {[%emt 0:01:24]} 17. Nxf6+ {[%emt 0:01:09]} exf6 {[%emt 0:00:21]} 18. g4 {[%emt 0:02:04]} hxg4 {[%emt 0:01:30]} 19. fxg4 {[%emt 0:00:28]} Kg7 {[%emt 0:01:32]} 20. g5 {[%emt 0:03:46]} fxg5 {[%emt 0:03:28]} 21. Rxg5 {[%emt 0:01:56]} Qc5 {[%emt 0:19:48]} 22. Rgg1 {[%emt 0:03:03]} Nc6 {[%emt 0:04:12]} 23. Nf5+ {[%emt 0:02:53]} Bxf5 {[%emt 0:01:08]} 24. exf5 {[%emt 0:00:04]} Qxf5 {[%emt 0:00:53]} 25. Qxd6 {[%emt 0:00:24]} Rbd8 {[%emt 0:01:11]} 26. Qg3 {[%emt 0:00:40]} Qa5 {[%emt 0:09:02]} 27. Bc4 {[%emt 0:01:05]} Qe5 {[%emt 0:08:06]} 28. Qf3 {[%emt 0:00:54]} Rd7 {[%emt 0:01:50]} 29. h5 {[%emt 0:00:51]} Rh6 {[%emt 0:17:54]} 30. hxg6 {[%emt 0:01:41]} Rxg6 {[%emt 0:00:35]} 31. Rxg6+ {[%emt 0:00:29]} fxg6 {[%emt 0:00:12]} 32. Rg1 {[%emt 0:00:13]} Re7 {[%emt 0:00:54]} 33. Qg3 {[%emt 0:00:53]} Qxg3 {[%emt 0:00:24]} 34. Rxg3 {[%emt 0:00:03]} Ne5 {[%emt 0:00:41]} 35. Bd5 {[%emt 0:00:32]} Kf6 {[%emt 0:00:44]} 36. Ra3 {[%emt 0:00:39]} b6 {[%emt 0:01:02]} 37. c4 {[%emt 0:00:37]} g5 {[%emt 0:00:35]} 38. Kd2 {[%emt 0:00:57]} g4 {[%emt 0:00:21]} 39. Rg3 {[%emt 0:00:15]} Kg5 {[%emt 0:00:14]} 40. Re3 {[%emt 0:00:50]} Re8 {[%emt 0:00:53]} 41. Ke2 {[%emt 0:00:00]} Kh4 {[%emt 0:00:00]} 42. Kf2 {[%emt 0:00:00]} Rf8+ {[%emt 0:00:00]} 43. Kg2 {[%emt 0:00:00]} Ng6 {[%emt 0:00:00]} 44. b4 {[%emt 0:00:00]} Nf4+ {[%emt 0:00:00]} 45. Kh1 {[%emt 0:00:00]} g3 {[%emt 0:05:53]} 46. Re7 {[%emt 0:09:59]} Rd8 {[%emt 0:03:40]} 47. Rh7+ {[%emt 0:02:44]} Kg5 {[%emt 0:02:15]} 48. Rg7+ {[%emt 0:01:00]} Kh6 {[%emt 0:01:07]} 49. Rxg3 {[%emt 0:00:33]} Nxd5 {[%emt 0:00:39]} 50. Rd3 {[%emt 0:00:37]} Kg5 {[%emt 0:00:31]} 51. cxd5 {[%emt 0:03:38]} Kf5 {[%emt 0:00:12]} 52. d6 {[%emt 0:01:15]} Ke6 {[%emt 0:00:18]} 53. Ra3 {[%emt 0:01:19]} Ra8 {[%emt 0:00:44]} 54. Rd3 {[%emt 0:00:09]} Rd8 {[%emt 0:00:08]} 55. Ra3 {[%emt 0:00:21]} Kd5 1/2-1/2

[Event "GER-ch Youth-U14w 2022"]
[Site "Willingen"]
[Date "2022.06.05"]
[Round "2.6"]
[White "Jacobasch, Ronja"]
[Black "Ottlik, Marie"]
[Result "1-0"]
[ECO "A00"]
[WhiteElo "1441"]
[BlackElo "1442"]
[Annotator "NA RC COMBH"]
[PlyCount "65"]
[EventDate "2022.06.05"]
[EventType "swiss"]
[EventRounds "9"]
[EventCountry "GER"]
[SourceTitle "playchess.com"]
[Source "ChessBase"]
[SourceQuality "1"]
[TimeControl "40/4500+30:900+30"]

1. g3 {[%emt 0:00:00]} c5 {[%emt 0:00:00]} 2. Bg2 {[%emt 0:00:00]} e5 {[%emt 0:00:00]} 3. c3 {[%emt 0:00:00]} Nc6 {[%emt 0:00:20]} 4. e3 {[%emt 0:00:00]} Nf6 {[%emt 0:06:01]} 5. Ne2 {[%emt 0:00:00]} d5 {[%emt 0:03:12]} 6. O-O {[%emt 0:01:04]} Be7 {[%emt 0:06:03]} 7. d4 {[%emt 0:08:21]} O-O {[%emt 0:04:34]} 8. dxe5 {[%emt 0:05:50]} Nxe5 {[%emt 0:00:48]} 9. Nf4 {[%emt 0:03:19]} Be6 {[%emt 0:07:15]} 10. Nxe6 {[%emt 0:02:00]} fxe6 {[%emt 0:00:11]} 11. Qc2 {[%emt 0:04:05]} Qe8 {[%emt 0:13:58]} 12. Nd2 {[%emt 0:03:21]} Qg6 {[%emt 0:07:02]} 13. Qxg6 {[%emt 0:01:03]} Nxg6 {[%emt 0:00:10]} 14. e4 {[%emt 0:06:17]} Rad8 {[%emt 0:07:57]} 15. Re1 {[%emt 0:05:13]} Rf7 {[%emt 0:05:18]} 16. a3 {[%emt 0:10:55]} Ng4 {[%emt 0:06:21]} 17. f3 {[%emt 0:03:46]} Nf6 {[%emt 0:05:33]} 18. e5 {[%emt 0:04:23]} Nd7 {[%emt 0:01:32]} 19. f4 {[%emt 0:01:05]} c4 {[%emt 0:01:34]} 20. Nf3 {[%emt 0:02:58]} h6 {[%emt 0:01:35]} 21. Be3 {[%emt 0:01:16]} Bc5 {[%emt 0:01:31]} 22. Nd4 {[%emt 0:03:53]} Re7 {[%emt 0:01:36]} 23. Bh3 {[%emt 0:02:41]} Ngf8 {[%emt 0:00:17]} 24. Re2 {[%emt 0:01:49]} a6 {[%emt 0:01:55]} 25. a4 {[%emt 0:03:28]} Rb8 {[%emt 0:02:20]} 26. Rb1 {[%emt 0:00:57]} Bb6 27. b4 {[%emt 0:01:32]} cxb3 {[%emt 0:01:19]} 28. Rxb3 {[%emt 0:01:42]} Ba5 {[%emt 0:00:20]} 29. Reb2 {[%emt 0:03:00]} Nc5 {[%emt 0:00:34]} 30. Ra3 {[%emt 0:00:31]} Ne4 {[%emt 0:00:42]} 31. Nc6 {[%emt 0:01:30]} Nxc3 {[%emt 0:00:29]} 32. Nxe7+ {[%emt 0:00:27]} Kf7 {[%emt 0:00:30]} 33. Nc6 {[%emt 0:00:47]} 1-0

[Event "GER-ch Youth-U14w 2022"]
[Site "Willingen"]
[Date "2022.06.05"]
[Round "2.7"]
[White "Bursan, Ana-Maria"]
[Black "Reich, Elisabeth"]
[Result "0-1"]
[ECO "B30"]
[WhiteElo "1329"]
[BlackElo "1457"]
[Annotator "NA RC COMBH"]
[PlyCount "90"]
[EventDate "2022.06.05"]
[EventType "swiss"]
[EventRounds "9"]
[EventCountry "GER"]
[SourceTitle "playchess.com"]
[Source "ChessBase"]
[SourceQuality "1"]
[TimeControl "40/4500+30:900+30"]

1. e4 {[%emt 0:00:00]} c5 {[%emt 0:00:00]} 2. Nf3 {[%emt 0:00:00]} Nc6 {[%emt 0:00:00]} 3. Bc4 {[%emt 0:00:00]} e6 {[%emt 0:00:00]} 4. c3 {[%emt 0:00:00]} d5 {[%emt 0:00:00]} 5. exd5 {[%emt 0:00:00]} exd5 {[%emt 0:00:00]} 6. Bb5 {[%emt 0:00:00]} Bd7 {[%emt 0:00:00]} 7. O-O {[%emt 0:00:00]} Nf6 {[%emt 0:00:00]} 8. d4 {[%emt 0:02:09]} Be7 {[%emt 0:00:00]} 9. dxc5 {[%emt 0:03:08]} Bxc5 {[%emt 0:00:00]} 10. Bxc6 {[%emt 0:01:40]} bxc6 {[%emt 0:00:08]} 11. Re1+ {[%emt 0:01:47]} Be7 {[%emt 0:03:05]} 12. Bg5 {[%emt 0:03:22]} O-O {[%emt 0:00:36]} 13. Ne5 {[%emt 0:02:48]} Re8 {[%emt 0:03:04]} 14. Nd2 {[%emt 0:01:39]} h6 {[%emt 0:00:52]} 15. Bh4 {[%emt 0:02:05]} Rb8 {[%emt 0:01:40]} 16. b3 {[%emt 0:01:35]} Qc8 {[%emt 0:02:42]} 17. Nxd7 {[%emt 0:01:43]} Qxd7 {[%emt 0:00:15]} 18. Qf3 {[%emt 0:02:53]} Ne4 {[%emt 0:10:03]} 19. Nxe4 {[%emt 0:02:21]} Bxh4 {[%emt 0:00:59]} 20. Ng3 {[%emt 0:02:38]} Bxg3 {[%emt 0:02:06]} 21. Qxg3 {[%emt 0:00:23]} Rxe1+ {[%emt 0:02:29]} 22. Rxe1 {[%emt 0:00:17]} Re8 {[%emt 0:00:32]} 23. Rd1 {[%emt 0:01:33]} Qe7 {[%emt 0:01:20]} 24. h3 {[%emt 0:00:40]} Qe2 {[%emt 0:00:50]} 25. Rd3 {[%emt 0:02:55]} Qxa2 {[%emt 0:02:11]} 26. Qc7 {[%emt 0:00:28]} Qb1+ {[%emt 0:00:22]} 27. Rd1 {[%emt 0:02:32]} Qxd1+ {[%emt 0:00:06]} 28. Kh2 {[%emt 0:00:06]} Qxb3 {[%emt 0:00:46]} 29. Qxc6 {[%emt 0:00:34]} Rf8 {[%emt 0:00:13]} 30. Qc7 {[%emt 0:02:32]} Qb8 {[%emt 0:00:12]} 31. Qxb8 {[%emt 0:00:43]} Rxb8 {[%emt 0:00:02]} 32. Kg3 {[%emt 0:00:12]} a5 {[%emt 0:00:03]} 33. Kf4 {[%emt 0:00:44]} a4 {[%emt 0:00:06]} 34. Ke5 {[%emt 0:00:32]} a3 {[%emt 0:00:19]} 35. Kxd5 {[%emt 0:00:21]} a2 {[%emt 0:00:05]} 36. c4 {[%emt 0:00:09]} a1=Q {[%emt 0:00:12]} 37. c5 {[%emt 0:00:16]} Qa5 {[%emt 0:00:23]} 38. Kd6 {[%emt 0:00:27]} Rc8 {[%emt 0:00:19]} 39. c6 {[%emt 0:00:18]} Qc7+ {[%emt 0:00:06]} 40. Kd5 {[%emt 0:00:24]} Qxc6+ {[%emt 0:00:10]} 41. Kd4 {[%emt 0:15:25]} Re8 {[%emt 0:15:12]} 42. Kd3 {[%emt 0:00:26]} Qd7+ {[%emt 0:00:06]} 43. Kc3 {[%emt 0:00:22]} Rc8+ {[%emt 0:00:03]} 44. Kb3 {[%emt 0:00:20]} Qb7+ {[%emt 0:00:06]} 45. Ka4 {[%emt 0:00:09]} Ra8# {[%emt 0:00:07]} 0-1

[Event "GER-ch Youth-U14w 2022"]
[Site "Willingen"]
[Date "2022.06.05"]
[Round "2.8"]
[White "Mueller, Riyanna"]
[Black "Trunz, Michelle"]
[Result "0-1"]
[ECO "B22"]
[WhiteElo "1521"]
[BlackElo "1708"]
[Annotator "NA RC COMBH"]
[PlyCount "74"]
[EventDate "2022.06.05"]
[EventType "swiss"]
[EventRounds "9"]
[EventCountry "GER"]
[SourceTitle "playchess.com"]
[Source "ChessBase"]
[SourceQuality "1"]
[TimeControl "40/4500+30:900+30"]

1. e4 {[%emt 0:00:00]} c5 {[%emt 0:00:00]} 2. c3 {[%emt 0:00:00]} e6 {[%emt 0:00:00]} 3. d4 {[%emt 0:00:00]} d5 {[%emt 0:00:00]} 4. exd5 {[%emt 0:00:00]} exd5 {[%emt 0:00:00]} 5. Nf3 {[%emt 0:00:00]} Nc6 {[%emt 0:00:00]} 6. Bb5 {[%emt 0:00:00]} Bd6 {[%emt 0:00:00]} 7. O-O {[%emt 0:00:00]} Nf6 {[%emt 0:00:00]} 8. Re1+ {[%emt 0:00:00]} Be6 {[%emt 0:00:00]} 9. Bg5 {[%emt 0:00:00]} O-O {[%emt 0:00:00]} 10. Ne5 {[%emt 0:00:00]} Qb6 {[%emt 0:06:42]} 11. Qe2 {[%emt 0:55:24]} Ne4 {[%emt 0:03:41]} 12. Bxc6 {[%emt 0:00:47]} Nxg5 {[%emt 0:34:54]} 13. dxc5 {[%emt 0:02:53]} Bxc5 {[%emt 0:05:33]} 14. Ba4 {[%emt 0:01:06]} Ne4 {[%emt 0:03:35]} 15. Nd3 {[%emt 0:04:09]} Bd6 {[%emt 0:05:18]} 16. Nd2 {[%emt 0:01:47]} Nxd2 {[%emt 0:01:21]} 17. Qxd2 {[%emt 0:00:06]} d4 {[%emt 0:03:31]} 18. Ne5 {[%emt 0:02:28]} dxc3 {[%emt 0:02:12]} 19. bxc3 {[%emt 0:02:57]} Rfd8 {[%emt 0:01:24]} 20. Qe2 {[%emt 0:01:15]} Qa5 {[%emt 0:01:41]} 21. Bb3 {[%emt 0:05:21]} Bxb3 {[%emt 0:04:41]} 22. axb3 {[%emt 0:00:26]} Qxc3 {[%emt 0:02:30]} 23. Nc4 {[%emt 0:02:42]} Bb4 {[%emt 0:04:00]} 24. Rab1 {[%emt 0:03:06]} h6 {[%emt 0:01:12]} 25. h3 {[%emt 0:01:44]} Qf6 {[%emt 0:01:39]} 26. Red1 {[%emt 0:00:17]} Re8 {[%emt 0:00:31]} 27. Qa2 {[%emt 0:00:59]} Bc5 {[%emt 0:01:36]} 28. Rb2 {[%emt 0:00:40]} b5 {[%emt 0:00:15]} 29. Na5 {[%emt 0:00:46]} Bb6 {[%emt 0:00:52]} 30. Rbd2 {[%emt 0:00:11]} Rad8 {[%emt 0:01:24]} 31. Nb7 {[%emt 0:00:49]} Rxd2 {[%emt 0:00:29]} 32. Rxd2 {[%emt 0:00:04]} Qc6 {[%emt 0:00:49]} 33. Nd6 {[%emt 0:00:52]} Re1+ {[%emt 0:00:22]} 34. Kh2 {[%emt 0:00:07]} Bc7 {[%emt 0:00:28]} 35. Qa3 {[%emt 0:01:02]} Re6 {[%emt 0:00:21]} 36. Qxa7 {[%emt 0:00:29]} Bxd6+ {[%emt 0:00:08]} 37. g3 {[%emt 0:00:10]} Re1 {[%emt 0:00:40]} 0-1

[Event "GER-ch Youth-U14w 2022"]
[Site "Willingen"]
[Date "2022.06.05"]
[Round "2.9"]
[White "Steinlechner, Katja"]
[Black "Haug, Mara"]
[Result "0-1"]
[ECO "A45"]
[WhiteElo "1317"]
[BlackElo "1394"]
[Annotator "NA RC COMBH"]
[PlyCount "70"]
[EventDate "2022.06.05"]
[EventType "swiss"]
[EventRounds "9"]
[EventCountry "GER"]
[SourceTitle "playchess.com"]
[Source "ChessBase"]
[SourceQuality "1"]
[TimeControl "40/4500+30:900+30"]

1. d4 {[%emt 0:00:00]} Nf6 {[%emt 0:00:00]} 2. Bf4 {[%emt 0:00:00]} c5 {[%emt 0:00:00]} 3. c3 {[%emt 0:00:00]} Qb6 {[%emt 0:00:00]} 4. Qb3 {[%emt 0:00:00]} cxd4 {[%emt 0:00:00]} 5. Qxb6 {[%emt 0:00:00]} axb6 {[%emt 0:00:00]} 6. cxd4 {[%emt 0:00:00]} Nc6 {[%emt 0:00:00]} 7. Nf3 {[%emt 0:02:44]} Nb4 {[%emt 0:00:00]} 8. Na3 {[%emt 0:04:31]} Rxa3 {[%emt 0:00:00]} 9. bxa3 {[%emt 0:00:41]} Nc2+ {[%emt 0:00:00]} 10. Kd1 {[%emt 0:01:19]} Nxa1 {[%emt 0:00:00]} 11. Kc1 {[%emt 0:13:04]} e6 {[%emt 0:00:00]} 12. Kb1 {[%emt 0:04:04]} Bxa3 {[%emt 0:00:02]} 13. Kxa1 {[%emt 0:01:21]} Ne4 {[%emt 0:05:16]} 14. Be3 {[%emt 0:03:29]} d5 {[%emt 0:03:18]} 15. Ne1 {[%emt 0:05:54]} Bd7 {[%emt 0:03:33]} 16. Nc2 {[%emt 0:03:55]} Be7 {[%emt 0:01:50]} 17. f3 {[%emt 0:03:50]} Nd6 {[%emt 0:02:23]} 18. Bf4 {[%emt 0:06:12]} O-O {[%emt 0:01:59]} 19. Bxd6 {[%emt 0:03:13]} Bxd6 {[%emt 0:00:14]} 20. e4 {[%emt 0:03:11]} dxe4 {[%emt 0:05:08]} 21. fxe4 {[%emt 0:01:06]} Rc8 {[%emt 0:01:01]} 22. e5 {[%emt 0:06:23]} Bxe5 {[%emt 0:03:41]} 23. dxe5 {[%emt 0:00:37]} Rxc2 {[%emt 0:00:39]} 24. Bd3 {[%emt 0:03:48]} Rc5 {[%emt 0:11:27]} 25. Be4 {[%emt 0:06:13]} Bc6 {[%emt 0:02:59]} 26. Rd1 {[%emt 0:02:59]} g6 {[%emt 0:00:42]} 27. Bxc6 {[%emt 0:03:05]} bxc6 {[%emt 0:00:17]} 28. Rd6 {[%emt 0:03:42]} Kf8 {[%emt 0:01:27]} 29. Kb2 {[%emt 0:01:01]} Ke7 {[%emt 0:00:18]} 30. Kb3 {[%emt 0:01:13]} f6 {[%emt 0:00:32]} 31. Rd4 {[%emt 0:02:27]} Rxe5 {[%emt 0:00:48]} 32. Ra4 {[%emt 0:00:29]} Re3+ {[%emt 0:02:34]} 33. Kb4 {[%emt 0:00:36]} Re4+ {[%emt 0:00:14]} 34. Kb3 {[%emt 0:00:08]} Rxa4 {[%emt 0:00:04]} 35. Kxa4 {[%emt 0:00:10]} Kd6 {[%emt 0:00:03]} 0-1